bitfinex-derivatives/quotes_ETHF0:USTF0_20250902
["timestamp","ask_amount","ask_price","bid_price","bid_amount"]
[1756807296754,1.511218,4396.3,4396.2,3.210354]
[1756807303057,0.824318,4396.3,4396.2,3.210354]
[1756807307261,0.824318,4396.3,4396.2,7.210354]
[1756807307262,0.82521203,4396.3,4396.2,7.210354]
[1756807307460,0.82521575,4396.3,4396.2,7.210354]
[1756807307667,0.82521575,4396.3,4396.2,7.437824]
[1756807307868,0.82521575,4396.3,4396.2,7.210354]
[1756807308069,0.81851157,4396.3,4396.2,7.210354]
[1756807311167,0.81773951,4396.3,4396.2,7.210354]
[1756807313263,0.19586497,4396.3,4396.2,7.847224]
[1756807313464,0.2946,4397.6,4397.4,0.3877]
[1756807313465,1.22368129,4397.5,4397.4,0.3877]
[1756807313664,0.82141508,4397.5,4397.4,0.9181]
[1756807313866,1.02911508,4397.5,4397.4,0.9181]
[1756807314065,1.32371508,4397.5,4397.4,0.9181]
[1756807314770,1.02911508,4397.5,4397.4,0.9181]
[1756807315070,1.32371508,4397.5,4397.4,0.9181]
[1756807315265,1.32371508,4397.5,4397.4,3.437754]
[1756807316374,0.82141508,4397.5,4397.4,3.437754]
[1756807318072,0.82139617,4397.5,4397.4,3.208754]
[1756807318272,0.82139617,4397.5,4397.4,3.437754]
[1756807318973,0.82136531,4397.5,4397.4,3.437754]
[1756807320272,0.19592864,4397.5,4397.4,7.847044]
[1756807320575,0.2946,4399.0,4398.5,0.3877]
[1756807320876,0.5023,4398.7,4398.6,0.6891]
[1756807321068,0.6981635,4398.7,4398.6,0.6891]
[1756807321270,1.32198373,4398.7,4398.6,0.6891]
[1756807321875,1.51368373,4398.7,4398.6,0.6891]
[1756807323372,0.8898635,4398.7,4398.6,0.6891]
[1756807325575,0.2946,4398.3,4398.2,0.4267]
[1756807325775,0.8898635,4398.3,4398.2,0.9181]
[1756807327475,0.8898635,4398.3,4398.2,3.437754]
[1756807327677,0.8893523,4398.3,4398.2,3.437754]
[1756807327974,0.8893523,4398.3,4398.2,3.208754]
[1756807328175,0.3994,4397.2,4397.1,3.8969]
[1756807328381,0.694,4397.2,4397.1,4.1259]
[1756807331383,0.88943612,4397.2,4397.1,4.1259]
[1756807332773,0.19543612,4397.2,4397.1,4.1259]
[1756807338087,0.19543612,4397.2,4397.1,8.1259]
[1756807338288,5.344,4398.4,4397.1,8.05192]
[1756807338480,0.38985669,4398.3,4398.2,0.4082]
[1756807338789,0.58815669,4398.3,4398.2,0.7021]
[1756807339179,0.87165669,4398.3,4398.2,0.7021]
[1756807339582,0.87165669,4398.3,4398.1,0.229]
[1756807339779,0.2835,4397.8,4397.3,0.2939]
[1756807339984,0.4775,4397.4,4397.3,0.7021]
[1756807340183,0.67335669,4397.4,4397.3,0.9311]
[1756807340380,0.87165669,4397.4,4397.3,0.9311]
[1756807341188,0.2835,4397.3,4396.7,0.2939]
[1756807341388,0.6758,4396.8,4396.7,0.2019]
[1756807341594,0.87165669,4396.8,4396.7,0.2019]
[1756807341785,0.6758,4396.5,4396.4,0.229]
[1756807341988,0.2835,4396.4,4396.2,3.5017]
[1756807342186,0.58815669,4396.3,4396.2,3.7036]
[1756807342395,0.87165669,4396.3,4396.2,3.9326]
[1756807343197,0.87165669,4396.3,4396.2,4.1389]
[1756807343388,0.19585669,4396.3,4396.2,4.1389]
[1756807343593,0.19585669,4396.3,4396.2,6.658554]
[1756807346200,0.19585669,4396.3,4396.2,6.429554]
[1756807346499,0.19585669,4396.3,4396.2,6.658554]
[1756807346902,0.19585669,4396.3,4396.2,6.429554]
[1756807347204,0.19585669,4396.3,4396.2,6.658554]
[1756807348703,0.19585669,4396.3,4396.2,6.429554]
[1756807348899,0.19585669,4396.3,4396.2,6.658554]
[1756807349104,0.19354843,4396.3,4396.2,6.658554]
[1756807349304,3.3128,4397.6,4396.2,6.364654]
[1756807349500,0.2835,4397.3,4396.3,0.2939]
[1756807349805,0.4775,4396.6,4396.5,0.7021]
[1756807350005,0.67100802,4396.6,4396.5,0.7021]
[1756807350200,0.67100802,4396.6,4396.5,3.221754]
[1756807354407,0.86930802,4396.6,4396.5,3.221754]
[1756807354607,0.86930802,4396.6,4396.5,3.450754]
[1756807356705,0.86930802,4396.6,4396.5,2.519654]
[1756807356910,4.07710802,4396.6,4396.5,2.519654]
[1756807357308,8.70040067,4396.6,4396.5,2.519654]
[1756807357608,0.1983,4395.8,4395.7,0.4309]
[1756807357810,0.1983,4395.8,4395.7,0.2019]
[1756807357811,0.86930802,4395.8,4395.7,0.2019]
[1756807358199,0.86930802,4395.8,4395.7,0.4958]
[1756807359606,0.86930802,4395.8,4395.7,0.2019]
[1756807359813,0.6758,4395.8,4395.7,0.2019]
[1756807360112,0.86939949,4395.8,4395.7,0.2019]
[1756807360706,0.8693548,4395.8,4395.7,2.721554]
[1756807361911,0.8693548,4395.8,4395.7,3.013954]
[1756807362313,0.8693548,4395.8,4395.7,2.721554]
[1756807363112,0.8693548,4395.8,4395.7,3.013954]
[1756807366117,0.8693548,4395.8,4395.7,3.202654]
[1756807366510,0.8693548,4395.8,4395.7,2.519654]
[1756807369219,1.49077535,4395.8,4395.7,2.519654]
[1756807370718,1.72119596,4395.8,4395.7,2.519654]
[1756807371122,1.72119596,4395.8,4395.7,2.708754]
[1756807372020,1.72119596,4395.8,4395.7,2.519654]
[1756807373624,1.72119596,4395.8,4395.7,2.708754]
[1756807373824,1.72119596,4395.8,4395.7,3.001154]
[1756807375423,1.72137529,4395.8,4395.7,3.001154]
[1756807376832,1.01057529,4395.8,4395.7,3.189854]
[1756807377130,1.04557529,4395.8,4395.7,3.189854]
[1756807377730,1.04558195,4395.8,4395.7,3.189854]
[1756807378527,1.24938195,4395.8,4395.7,3.189854]
[1756807378727,1.74908195,4395.8,4395.7,3.189854]
[1756807379428,0.81658195,4395.8,4395.7,3.189854]
[1756807380334,0.19498207,4395.8,4395.7,7.189854]
[1756807380832,3.2078,4396.1,4395.7,7.189854]
[1756807381032,3.2078,4396.1,4396.0,0.6702]
[1756807381335,3.40285129,4396.1,4396.0,0.6702]
[1756807381727,3.4028823,4396.1,4396.0,0.6702]
[1756807381931,3.9090823,4396.1,4396.0,0.6702]
[1756807382136,4.5312201,4396.1,4396.0,0.6702]
[1756807382736,4.2288201,4396.1,4396.0,0.6702]
[1756807383138,4.0250201,4396.1,4396.0,0.6702]
[1756807383638,4.7285201,4396.1,4396.0,0.6702]
[1756807384443,0.1950823,4396.1,4396.0,5.0161]
[1756807385340,0.3988823,4396.1,4396.0,3.189854]
[1756807385546,0.7012823,4396.1,4396.0,3.418854]
[1756807385733,0.1950823,4396.1,4396.0,3.418854]
[1756807385935,0.7012823,4396.1,4396.0,3.189854]
[1756807386133,1.32420473,4396.1,4396.0,3.189854]
[1756807386443,0.7012823,4396.1,4396.0,3.189854]
[1756807386942,0.3988823,4396.1,4396.0,3.189854]
[1756807387240,1.02189973,4396.1,4396.0,3.189854]
[1756807387540,0.7012823,4396.1,4396.0,3.189854]
[1756807387736,1.52155327,4396.1,4396.0,3.189854]
[1756807388942,0.81805327,4396.1,4396.0,3.189854]
[1756807389836,1.22155327,4396.1,4396.0,3.189854]
[1756807390040,1.53345327,4396.1,4396.0,3.189854]
[1756807390942,1.53370069,4396.1,4396.0,3.189854]
[1756807391742,1.53370069,4396.1,4396.0,3.188854]
[1756807394143,0.81830069,4396.1,4396.0,3.188854]
[1756807394740,1.32870069,4396.1,4396.0,3.188854]
[1756807395142,0.81830069,4396.1,4396.0,3.188854]
[1756807396248,0.81830069,4396.1,4396.0,3.417854]
[1756807399248,0.19532972,4396.1,4396.0,3.539454]
[1756807399945,0.19532972,4396.1,4396.0,7.766934]
[1756807401751,0.19497717,4396.1,4396.0,7.539454]
[1756807402450,0.19495399,4396.1,4396.0,7.247054]
[1756807402748,0.19495399,4396.1,4396.0,7.533454]
[1756807402945,3.2078,4397.2,4397.1,0.3961]
[1756807403151,0.19496306,4397.2,4397.1,0.9115]
[1756807404452,0.91036306,4397.2,4397.1,0.9115]
[1756807408756,0.91036306,4397.2,4397.1,0.1934]
[1756807408952,0.91036306,4397.2,4397.1,0.6825]
[1756807409556,0.19496306,4397.2,4397.1,0.6825]
[1756807409855,0.39346306,4397.2,4397.1,0.6825]
[1756807410154,0.19496306,4397.2,4397.1,0.6825]
[1756807410359,0.19496306,4397.2,4397.1,4.6825]
[1756807410849,0.19496306,4397.2,4397.1,0.9115]
[1756807411147,0.39346306,4397.2,4397.1,0.9115]
[1756807411860,0.19496306,4397.2,4397.1,0.9115]
[1756807412255,0.19496306,4397.2,4397.1,0.6825]
[1756807412454,0.91012534,4397.2,4397.1,0.9115]
[1756807412651,0.91012534,4397.2,4397.1,0.6825]
[1756807412851,0.91009242,4397.2,4397.1,0.9115]
[1756807413658,0.19469242,4397.2,4397.1,0.9115]
[1756807417159,0.3119,4397.6,4397.1,0.9115]
[1756807417360,0.39300649,4397.5,4397.4,0.6825]
[1756807417661,0.70490649,4397.5,4397.4,0.9115]
[1756807417964,0.39300649,4397.5,4397.4,0.9115]
[1756807418662,0.70490649,4397.5,4397.4,0.9115]
[1756807419459,0.90990649,4397.5,4397.4,0.9115]
[1756807420263,0.90990649,4397.5,4397.4,3.431154]
[1756807420664,0.90990649,4397.5,4397.4,2.519654]
[1756807420866,5.03420649,4397.5,4396.8,0.229]
[1756807421064,0.7062,4396.9,4396.7,0.2827]
[1756807421364,3.2078,4397.2,4396.7,0.1898]
[1756807421365,0.90070649,4396.8,4396.7,0.1898]
[1756807421561,0.90070649,4396.8,4396.7,0.4725]
[1756807422361,0.3058,4396.7,4396.6,0.1898]
[1756807422563,0.90070649,4396.7,4396.6,0.4725]
[1756807422966,0.7062,4396.7,4396.6,0.6731]
[1756807423164,0.90059214,4396.7,4396.6,0.6731]
[1756807423967,0.90063092,4396.7,4396.6,0.6731]
[1756807426173,0.90063092,4396.7,4396.6,0.1898]
[1756807426370,0.90063092,4396.7,4396.3,0.2827]
[1756807426573,0.90063092,4396.6,4396.5,0.1898]
[1756807427371,0.3058,4396.5,4396.3,0.5117]
[1756807427576,0.90063092,4396.4,4396.3,0.7015]
[1756807428375,0.90063092,4396.4,4396.3,0.9021]
[1756807428574,0.90063092,4396.4,4396.3,0.4188]
[1756807428774,0.90063092,4396.4,4396.3,0.9021]
[1756807431479,0.19443092,4396.4,4396.3,0.9021]
[1756807433874,0.19358067,4396.4,4396.3,0.9021]
[1756807434780,0.3058,4396.6,4396.3,0.9021]
[1756807434982,0.69227897,4396.5,4396.4,0.6731]
[1756807435282,0.89977897,4396.5,4396.4,0.9021]
[1756807435578,0.89977897,4396.5,4396.4,3.421754]
[1756807437183,0.89977897,4396.5,4396.4,3.192754]
[1756807437380,0.89977897,4396.5,4396.4,3.421754]
[1756807440787,0.19357897,4396.5,4396.4,3.421754]
[1756807441286,0.69227897,4396.5,4396.4,3.421754]
[1756807442189,0.19357897,4396.5,4396.4,3.421754]
[1756807443492,0.3058,4396.8,4396.4,3.421754]
[1756807443790,0.19358785,4396.7,4396.6,0.6731]
[1756807443992,0.19358785,4396.7,4396.6,0.9021]
[1756807444295,0.69228785,4396.7,4396.6,0.9021]
[1756807447690,0.19358785,4396.7,4396.6,0.9021]
[1756807448396,0.19358785,4396.7,4396.6,5.53891]
[1756807448689,3.2078,4397.7,4396.6,5.25621]
[1756807448891,3.8995,4397.7,4397.6,0.6946]
[1756807449085,4.71337459,4397.7,4397.6,0.9236]
[1756807449290,4.09329029,4397.7,4397.6,0.9236]
[1756807449491,4.71329884,4397.7,4397.6,0.9236]
[1756807449795,4.02159884,4397.7,4397.6,0.9236]
[1756807449992,0.19379029,4397.7,4397.6,4.1314]
[1756807450189,0.19379029,4397.7,4397.6,8.1314]
[1756807453292,0.2999,4398.6,4397.6,7.8272]
[1756807453598,0.39377587,4398.5,4398.4,0.6938]
[1756807453795,0.19337587,4398.5,4398.4,0.9228]
[1756807454394,3.2078,4399.0,4398.4,4.6186]
[1756807454594,0.19325188,4398.9,4398.5,0.124]
[1756807454800,0.2999,4399.4,4398.9,0.3042]
[1756807455000,0.6992,4399.4,4399.3,0.5021]
[1756807455201,0.89244494,4399.4,4399.3,0.9228]
[1756807458294,0.89244494,4399.4,4399.3,0.6938]
[1756807461203,0.6992,4399.4,4399.3,0.6938]
[1756807463509,3.2078,4399.6,4399.4,0.3042]
[1756807463510,3.5077,4399.6,4399.4,0.3042]
[1756807463707,3.7081,4399.6,4399.5,0.6938]
[1756807464010,4.09969877,4399.6,4399.5,0.6938]
[1756807464998,3.907,4399.6,4399.5,0.6938]
[1756807465203,4.09968454,4399.6,4399.5,0.6938]
[1756807465403,4.09968454,4399.6,4399.5,3.213454]
[1756807468115,3.60088454,4399.6,4399.5,3.213454]
[1756807468313,0.19268454,4399.6,4399.5,3.213454]
[1756807468510,0.2999,4399.9,4399.5,3.138254]
[1756807468713,0.5003,4399.9,4399.8,0.3896]
[1756807468915,0.69299675,4399.9,4399.8,0.9228]
[1756807470210,0.19269675,4399.9,4399.8,0.9228]
[1756807470405,0.2999,4400.2,4399.9,0.3042]
[1756807470610,0.2999,4400.5,4400.2,0.3042]
[1756807470809,0.19274135,4400.4,4400.3,0.6938]
[1756807471008,0.39314135,4400.4,4400.3,0.6938]
[1756807471207,0.69304135,4400.4,4400.3,0.6938]
[1756807471414,0.89194135,4400.4,4400.3,0.6938]
[1756807471910,0.89194135,4400.4,4400.3,0.3896]
[1756807472214,0.89194135,4400.4,4400.3,0.6938]
[1756807474520,0.69304135,4400.4,4400.3,0.6938]
[1756807474913,0.89194135,4400.4,4400.3,0.6938]
[1756807475818,0.89209421,4400.4,4400.3,0.6938]
[1756807476014,0.2999,4400.3,4399.4,0.3042]
[1756807476218,0.3993,4400.0,4399.9,0.5021]
[1756807476421,0.59219421,4400.0,4399.9,0.1979]
[1756807476621,0.59219421,4400.0,4399.9,0.4269]
[1756807476919,0.89209421,4400.0,4399.9,0.4269]
[1756807477520,0.89209421,4400.0,4399.9,2.946554]
[1756807481331,0.89209421,4400.0,4399.9,2.717554]
[1756807483332,0.89209421,4400.0,4399.9,2.519654]
[1756807483631,1.23237421,4400.0,4399.9,2.519654]
[1756807483829,1.62383064,4400.0,4399.9,2.519654]
[1756807484423,1.85283064,4400.0,4399.9,2.519654]
[1756807486423,1.65993643,4400.0,4399.9,2.519654]
[1756807486629,1.85343531,4400.0,4399.9,2.519654]
[1756807487135,1.51143531,4400.0,4399.9,2.722054]
[1756807487332,0.61873643,4400.0,4399.9,3.209854]
[1756807487536,0.81227743,4400.0,4399.9,3.209854]
[1756807488636,1.00257743,4400.0,4399.9,3.209854]
[1756807488836,1.29587743,4400.0,4399.9,3.209854]
[1756807489837,1.49907743,4400.0,4399.9,3.209854]
[1756807491941,0.81227743,4400.0,4399.9,3.209854]
[1756807492242,1.00257743,4400.0,4399.9,3.209854]
[1756807492437,1.29587743,4400.0,4399.9,3.209854]
[1756807493243,0.81227743,4400.0,4399.9,3.209854]
[1756807493539,0.193541,4400.0,4399.9,3.209854]
[1756807497244,0.2933,4400.5,4399.9,3.209854]
[1756807497440,0.81166633,4400.4,4400.3,0.4011]
[1756807497641,0.81166633,4400.4,4400.3,0.6902]
[1756807498041,1.49846633,4400.4,4400.3,0.6902]
[1756807499246,1.49846633,4400.4,4400.0,0.5181]
[1756807499542,1.49846633,4400.3,4400.2,0.6902]
[1756807500244,1.29526633,4400.3,4400.2,0.6902]
[1756807500445,1.49846633,4400.3,4400.2,3.209854]
[1756807500845,1.49850355,4400.3,4400.2,3.209854]
[1756807501542,1.49850355,4400.3,4400.2,2.722054]
[1756807501845,1.49850355,4400.3,4400.2,3.209854]
[1756807504148,1.49850355,4400.3,4400.2,2.722054]
[1756807504348,1.49850355,4400.3,4400.2,2.519654]
[1756807505245,5.72576356,4400.3,4400.2,2.519654]
[1756807505749,5.49850355,4400.3,4400.2,2.519654]
[1756807506644,5.72750355,4400.3,4400.2,2.519654]
[1756807506849,5.7276425,4400.3,4400.2,2.519654]
[1756807507352,5.7276425,4400.3,4400.2,2.29797522]
[1756807507651,5.72767542,4400.3,4400.2,2.29797522]
[1756807507851,6.95135671,4400.3,4400.2,2.29797522]
[1756807508351,2.95135671,4400.3,4400.2,2.29797522]
[1756807510148,1.72767542,4400.3,4400.2,2.29797522]
[1756807510345,2.94847434,4400.3,4400.2,2.29797522]
[1756807511650,1.72767542,4400.3,4400.2,2.29797522]
[1756807512453,0.2839,4400.2,4398.2,0.293]
[1756807512753,0.48,4398.4,4398.3,0.6096]
[1756807512952,3.88033469,4398.4,4398.3,0.6096]
[1756807513154,4.49967542,4398.4,4398.3,0.6096]
[1756807514255,0.2839,4398.3,4397.1,3.2078]
[1756807514451,0.2839,4398.1,4397.2,0.229]
[1756807514653,0.6735,4398.1,4398.0,0.1929]
[1756807514858,1.71303937,4398.1,4398.0,0.1929]
[1756807515553,1.71303937,4398.1,4397.5,0.1784]
[1756807515856,0.3896,4397.3,4397.2,2.941554]
[1756807516054,4.69005236,4397.3,4397.2,2.712554]
[1756807516255,4.91905236,4397.3,4397.2,2.519654]
[1756807517261,4.30242277,4397.3,4397.2,2.519654]
[1756807517462,4.30180269,4397.3,4397.2,2.519654]
[1756807518564,4.30165324,4397.3,4397.2,2.519654]
[1756807520258,4.30165324,4397.3,4397.2,2.712554]
[1756807520460,4.07265324,4397.3,4397.2,2.712554]
[1756807520766,4.30165324,4397.3,4397.2,2.712554]
[1756807522862,4.10815324,4397.3,4397.2,3.090654]
[1756807523060,3.91205324,4397.3,4397.2,3.090654]
[1756807523662,4.10815324,4397.3,4397.2,3.090654]
[1756807524062,4.10815324,4397.3,4397.2,2.912254]
[1756807524366,4.30165324,4397.3,4397.2,2.912254]
[1756807526762,3.68305324,4397.3,4397.2,3.090654]
[1756807526960,0.229,4397.5,4397.2,2.912254]
[1756807527159,0.5129,4397.5,4397.4,0.571]
[1756807527359,0.70523626,4397.5,4397.4,0.571]
[1756807527768,3.2078,4397.8,4397.4,0.571]
[1756807527769,0.229,4397.6,4397.4,4.3926]
[1756807527966,0.229,4397.6,4397.5,0.571]
[1756807528369,0.5129,4397.6,4397.5,0.571]
[1756807528761,0.709,4397.6,4397.5,0.1929]
[1756807528958,0.9025,4397.6,4397.5,0.1929]
[1756807529364,1.09497165,4397.6,4397.5,0.1929]
[1756807529765,1.09497165,4397.6,4397.5,0.3926]
[1756807530468,1.09497165,4397.6,4397.5,2.912254]
[1756807530658,1.09497165,4397.6,4397.5,2.519654]
[1756807531367,1.7087216,4397.6,4397.5,2.519654]
[1756807535370,1.70902359,4397.6,4397.5,2.519654]
[1756807537171,1.70902359,4397.6,4395.6,0.22745]
[1756807537172,0.7957,4396.5,4395.6,0.22745]
[1756807537473,0.48,4396.3,4395.7,0.229]
[1756807537671,0.60187364,4396.2,4395.7,0.229]
[1756807537870,0.4061,4396.0,4395.7,0.229]
[1756807538072,0.2839,4395.8,4395.7,0.229]
[1756807538271,0.47667364,4395.8,4395.7,0.229]
[1756807538769,0.19277364,4395.8,4395.7,0.229]
[1756807538973,0.19293492,4395.8,4395.7,0.229]
[1756807539972,0.19293492,4395.8,4395.7,4.229]
[1756807540366,0.19293492,4395.8,4395.7,6.74865399]
[1756807544070,3.2078,4396.9,4395.7,6.74865399]
[1756807544270,0.19352673,4396.8,4396.3,3.2078]
[1756807544476,0.19352673,4396.7,4396.4,0.229]
[1756807544675,0.19352673,4396.6,4396.4,0.229]
[1756807544873,0.19352673,4396.5,4396.4,0.229]
[1756807545070,3.2078,4396.9,4396.4,0.229]
[1756807545071,0.19352673,4396.7,4396.4,0.229]
[1756807545271,0.19352673,4396.6,4396.4,2.74865399]
[1756807545469,0.2873,4397.4,4396.4,2.74865399]
[1756807545774,0.1936761,4397.3,4396.8,3.2078]
[1756807545979,0.1936761,4397.2,4396.9,0.229]
[1756807546178,0.1936761,4397.1,4396.9,0.229]
[1756807546376,0.4928,4397.7,4396.9,0.229]
[1756807546577,3.33,4398.0,4396.4,2.55924047]
[1756807546578,0.4094,4396.8,4396.7,0.229]
[1756807546778,0.8903223,4396.8,4396.7,0.229]
[1756807547278,0.6864223,4396.8,4396.7,0.229]
[1756807548380,0.4809223,4396.8,4396.7,0.229]
[1756807548776,0.1936223,4396.8,4396.7,0.229]
[1756807549074,0.1936223,4396.8,4396.7,4.229]
[1756807549278,0.2873,4397.6,4396.7,4.229]
[1756807549480,0.2873,4397.6,4397.0,3.2078]
[1756807549676,0.4928,4397.6,4397.1,0.23]
[1756807549981,0.51991689,4397.5,4397.1,0.23]
[1756807550178,0.2873,4397.3,4397.1,0.23]
[1756807550379,0.2873,4397.4,4397.2,2.51965399]
[1756807550583,0.19359246,4397.3,4397.2,2.51965399]
[1756807550879,0.48089246,4397.3,4397.2,2.51965399]
[1756807552081,0.68639246,4397.3,4397.2,2.51965399]
[1756807552670,0.68639246,4397.3,4397.2,2.74865399]
[1756807554681,0.48089246,4397.3,4397.2,2.74865399]
[1756807556586,0.89029246,4397.3,4397.2,2.74865399]
[1756807558280,0.89029246,4397.3,4397.2,2.51965399]
[1756807558485,0.89029246,4397.3,4397.2,2.74865399]
[1756807558685,0.89029246,4397.3,4397.2,2.51965399]
[1756807558886,0.89029246,4397.3,4397.2,2.74865399]
[1756807559183,0.89029246,4397.3,4397.2,2.51965399]
[1756807560481,0.8906387,4397.3,4397.2,2.51965399]
[1756807561290,0.89062528,4397.3,4397.2,2.51965399]
[1756807562882,0.89062742,4397.3,4397.2,2.51965399]
[1756807564288,0.48122742,4397.3,4397.2,2.74865399]
[1756807566493,0.48121107,4397.3,4397.2,2.74865399]
[1756807566889,0.68671107,4397.3,4397.2,2.74865399]
[1756807568996,0.68671107,4397.3,4397.2,2.51965399]
[1756807569192,0.68671107,4397.3,4397.2,2.74865399]
[1756807569896,0.2873,4397.3,4397.2,2.74865399]
[1756807570091,0.48137617,4397.3,4397.2,2.74865399]
[1756807570893,0.4814376,4397.3,4397.2,2.74865399]
[1756807571498,0.8889376,4397.3,4397.2,2.74865399]
[1756807573202,0.8889376,4397.3,4397.2,2.51965399]
[1756807573402,0.8889376,4397.3,4397.2,2.74865399]
[1756807573596,1.50832776,4397.3,4397.2,2.74865399]
[1756807575401,1.50832776,4397.3,4397.2,2.51965399]
[1756807575997,0.4814376,4397.3,4397.2,2.51965399]
[1756807576398,0.6879376,4397.3,4397.2,2.51965399]
[1756807580612,0.68842483,4397.3,4397.2,2.51965399]
[1756807580802,0.68842498,4397.3,4397.2,2.51965399]
[1756807582204,0.88942498,4397.3,4397.2,2.51965399]
[1756807582504,1.51063723,4397.3,4397.2,2.51965399]
[1756807583804,1.10313723,4397.3,4397.2,2.74865399]
[1756807584005,0.48192498,4397.3,4397.2,2.74865399]
[1756807588208,0.68842498,4397.3,4397.2,2.74865399]
[1756807589911,0.48192498,4397.3,4397.2,2.74865399]
[1756807590509,0.68842498,4397.3,4397.2,2.74865399]
[1756807590710,0.88942498,4397.3,4397.2,2.74865399]
[1756807591307,0.88498281,4397.3,4397.2,2.74865399]
[1756807591611,0.68398281,4397.3,4397.2,2.74865399]
[1756807594612,0.68398281,4397.3,4397.2,2.51965399]
[1756807594804,0.68398281,4397.3,4397.2,2.74865399]
[1756807598309,0.47748281,4397.3,4397.2,2.74865399]
[1756807598509,0.47748281,4397.3,4397.2,5.95645399]
[1756807599217,0.47748281,4397.3,4397.2,2.74865399]
[1756807600016,0.47748281,4397.3,4397.2,2.51965399]
[1756807600317,0.86298281,4397.3,4397.2,2.74865399]
[1756807600915,1.48438515,4397.3,4397.2,2.74865399]
[1756807602017,1.48444232,4397.3,4397.2,2.74865399]
[1756807602316,0.86303998,4397.3,4397.2,2.74865399]
[1756807602520,0.47753998,4397.3,4397.2,2.74865399]
[1756807602909,0.2873,4397.3,4397.2,2.74865399]
[1756807603120,0.47754944,4397.3,4397.2,2.74865399]
[1756807603619,0.19024944,4397.3,4397.2,6.97606398]
[1756807603820,0.19024944,4397.3,4397.2,47.54865399]
[1756807606115,0.2963,4397.8,4397.2,47.54865399]
[1756807606317,0.48641858,4397.7,4397.6,3.2078]
[1756807606516,0.48641858,4397.7,4397.6,3.4368]
[1756807607214,0.19011858,4397.7,4397.6,3.4368]
[1756807608117,0.48641858,4397.7,4397.6,3.4368]
[1756807608723,0.48635114,4397.7,4397.6,3.4368]
[1756807609125,0.2963,4397.7,4397.6,3.4368]
[1756807609320,0.48634577,4397.7,4397.6,3.4368]
[1756807610225,0.19004577,4397.7,4397.6,3.4368]
[1756807610919,0.2963,4398.3,4397.6,7.4368]
[1756807611118,0.19261687,4398.2,4397.6,3.4368]
[1756807611320,0.48891687,4398.1,4397.6,0.63827]
[1756807611519,0.2963,4398.4,4398.0,3.2078]
[1756807611724,0.2963,4398.2,4398.1,0.229]
[1756807612026,0.48886348,4398.2,4398.1,0.229]
[1756807612227,0.2963,4398.2,4398.1,0.229]
[1756807612827,0.6818,4398.1,4398.0,3.2078]
[1756807613020,0.87427386,4398.1,4398.0,3.4368]
[1756807615328,0.87427386,4398.1,4398.0,5.95645399]
[1756807616228,0.67827386,4398.1,4398.0,5.95645399]
[1756807617125,0.2963,4398.1,4398.0,5.95645399]
[1756807619429,0.2963,4398.4,4398.0,5.95645399]
[1756807619626,0.48864406,4398.3,4398.0,5.95645399]
[1756807619929,0.2963,4398.2,4398.0,5.95645399]
[1756807620127,0.3103,4398.5,4398.0,5.95645399]
[1756807620329,0.4858,4398.1,4398.0,5.95645399]
[1756807620517,0.2963,4398.1,4398.0,5.95645399]
[1756807622124,3.3973,4398.9,4398.0,5.95645399]
[1756807622324,0.48862879,4398.8,4398.0,5.95645399]
[1756807622621,0.48862879,4398.7,4398.6,3.2078]
[1756807622827,0.48862879,4398.7,4398.6,3.4368]
[1756807623129,0.2963,4398.7,4398.6,44.2368]
[1756807623930,0.48855356,4398.7,4398.6,44.2368]
[1756807624525,0.48855356,4398.7,4398.6,3.4368]
[1756807624726,0.87405356,4398.7,4398.6,3.4368]
[1756807625427,0.87405356,4398.7,4398.6,3.2078]
[1756807625637,0.87405356,4398.7,4398.6,3.4368]
[1756807627430,0.48855356,4398.7,4398.6,3.4368]
[1756807629233,0.3065,4399.4,4398.6,3.4368]
[1756807629436,0.3065,4399.2,4398.6,3.4368]
[1756807629730,0.19228962,4399.1,4398.7,2.51965399]
[1756807629936,0.3065,4398.9,4398.8,0.229]
[1756807631335,0.5007,4398.9,4398.8,0.229]
[1756807632128,0.69306565,4398.9,4398.8,0.229]
[1756807632936,0.69306556,4398.9,4398.8,0.229]
[1756807635238,0.89146556,4398.9,4398.8,0.229]
[1756807636536,0.58496556,4398.9,4398.8,0.229]
[1756807636736,0.89146556,4398.9,4398.8,0.229]
[1756807637637,0.89146556,4398.9,4398.6,3.2078]
[1756807637838,0.3065,4398.8,4398.6,3.2078]
[1756807638140,0.6991,4398.7,4398.6,3.2078]
[1756807638535,0.3926,4398.2,4398.1,40.8]
[1756807638846,0.89154346,4398.2,4398.1,41.029]
[1756807639444,0.89154346,4398.2,4398.1,0.229]
[1756807640144,0.6991,4397.6,4397.5,32.748]
[1756807640345,0.6991,4397.6,4397.5,32.977]
[1756807640845,0.88866509,4397.6,4397.5,32.977]
[1756807641246,0.6991,4397.6,4397.5,32.977]
[1756807641546,0.88864494,4397.6,4397.5,32.977]
[1756807641748,0.88864494,4397.6,4397.5,0.229]
[1756807641937,0.88864494,4397.6,4397.5,2.74865399]
[1756807643049,0.49604494,4397.6,4397.5,2.74865399]
[1756807643253,0.3065,4397.6,4397.5,2.74865399]
[1756807645140,0.6991,4397.6,4397.5,2.74865399]
[1756807647649,0.6991,4397.6,4397.5,2.51965399]
[1756807647849,0.88848182,4397.6,4397.5,2.74865399]
[1756807650152,0.6991,4396.9,4396.8,3.2078]
[1756807650450,0.6991,4396.4,4396.3,3.2078]
[1756807650650,0.6991,4396.4,4396.3,3.4368]
[1756807651148,0.88830758,4396.4,4396.3,3.4368]
[1756807651651,0.88830758,4396.4,4396.3,0.229]
[1756807654153,0.6991,4396.4,4396.3,0.229]
[1756807654353,0.8879455,4396.4,4396.3,0.229]
[1756807654549,4.5814455,4396.4,4395.7,3.2078]
[1756807654746,0.6991,4395.8,4395.7,3.2078]
[1756807654942,0.6991,4395.8,4395.7,3.4368]
[1756807655148,0.6991,4395.8,4395.1,40.8]
[1756807655149,4.3926,4395.8,4395.1,3.2078]
[1756807655342,0.6991,4394.8,4394.5,3.2078]
[1756807655660,0.6991,4394.8,4394.7,32.977]
[1756807656161,0.6991,4394.8,4394.7,0.2025]
[1756807656468,0.6991,4394.6,4394.5,3.2078]